bitfinex/quotes_ETHUSD_20250323
["timestamp","ask_amount","ask_price","bid_price","bid_amount"]
[1742753911420,7.98525698,1995.9,1995.5,46.1280314]
[1742753911619,0.18262954,1995.8,1995.5,46.1280314]
[1742753911801,7.98525698,1995.9,1995.5,46.1280314]
[1742753912124,0.18262954,1995.8,1995.5,46.1280314]
[1742753912418,7.98525698,1995.9,1995.5,46.1280314]
[1742753912623,0.18262954,1995.8,1995.5,46.1280314]
[1742753912925,7.98525698,1995.9,1995.6,4.61280314]
[1742753913133,0.18224612,1995.7,1995.6,5.01102]
[1742753913718,2.97495698,1996.1,1995.8,5.01051]
[1742753914722,7.98476698,1996.1,1995.7,5.01074]
[1742753915422,7.98476698,1996.1,1995.7,10.02135]
[1742753915992,7.98476698,1996.1,1995.7,5.01061]
[1742753916491,7.98476698,1996.1,1995.7,11.103701]
[1742753916796,7.98476698,1996.1,1995.7,6.093061]
[1742753917633,7.98476698,1996.1,1995.7,11.103651]
[1742753917830,7.98476698,1996.1,1995.7,6.093041]
[1742753918203,7.98476698,1996.1,1995.8,5.01048]
[1742753918932,2.97495698,1996.1,1995.8,5.01048]
[1742753919128,0.4604,1996.3,1996.1,5.00971]
[1742753919330,5.00916,1996.4,1996.0,5.0099]
[1742753919503,7.98411698,1996.4,1996.0,5.0099]
[1742753919904,5.00916,1996.4,1996.0,5.0099]
[1742753920103,7.98411698,1996.4,1996.0,6.482715]
[1742753920339,7.98411698,1996.4,1996.1,0.7969]
[1742753920542,7.98411698,1996.4,1996.0,6.482715]
[1742753920543,5.00939,1996.3,1995.9,10.51511]
[1742753920837,5.00939,1996.3,1995.9,15.52526]
[1742753921536,5.00939,1996.3,1995.9,10.51505]
[1742753921736,5.00939,1996.3,1995.9,12.17863921]
[1742753922137,5.00939,1996.3,1995.9,17.18874921]
[1742753922308,5.00939,1996.3,1995.9,12.17859921]
[1742753923235,0.18380561,1996.2,1995.9,12.17859921]
[1742753923405,0.18380561,1996.2,1995.9,17.18868921]
[1742753923602,0.18380561,1996.2,1996.0,1.71886892]
[1742753923809,0.18380561,1996.2,1996.0,6.72885892]
[1742753925239,0.18380561,1996.2,1996.1,5.00976]
[1742753925408,5.00862,1996.6,1996.2,5.00942]
[1742753925609,0.18539853,1996.5,1996.3,5.00926]
[1742753925808,5.00855,1996.6,1996.3,6.01112]
[1742753926040,0.18539853,1996.5,1996.3,5.00926]
[1742753928446,0.18539853,1996.5,1996.4,4.708]
[1742753928605,8.44322698,1996.9,1996.5,5.00875]
[1742753928811,0.18703533,1996.8,1996.5,5.00875]
[1742753932245,5.19506533,1996.8,1996.5,5.00875]
[1742753932746,0.18703533,1996.8,1996.5,5.00875]
[1742753933749,0.18703533,1996.8,1996.5,8.709215]
[1742753934747,5.19506533,1996.8,1996.5,8.709215]
[1742753935047,5.19506533,1996.8,1996.5,3.700465]
[1742753935342,5.19506533,1996.8,1996.4,37.00489]
[1742753935343,5.19506533,1996.8,1996.4,31.9959]
[1742753935651,5.00839,1996.7,1996.4,31.9959]
[1742753935845,0.18742162,1996.6,1996.4,31.9959]
[1742753936026,5.00839,1996.7,1996.4,31.9959]
[1742753936351,0.18742162,1996.6,1996.4,31.9959]
[1742753936520,0.18742162,1996.6,1996.4,37.00489]
[1742753936720,5.00839,1996.7,1996.4,37.00489]
[1742753936923,0.1870385,1996.5,1996.4,37.00489]
[1742753937247,0.1870385,1996.5,1996.4,41.30657194]
[1742753937446,5.00839,1996.7,1996.4,41.30657194]
[1742753937646,0.18742162,1996.6,1996.4,37.00489]
[1742753937853,5.00807,1996.8,1996.4,37.00479]
[1742753938151,0.1878047,1996.7,1996.5,5.00872]
[1742753940216,8.44318698,1996.9,1996.5,5.00872]
[1742753940420,0.18818775,1996.8,1996.5,5.00872]
[1742753940620,0.18818775,1996.8,1996.5,9.210071]
[1742753942552,5.19623775,1996.8,1996.5,4.201351]
[1742753942855,5.19623775,1996.8,1996.4,37.00487]
[1742753943056,10.20442775,1996.8,1996.4,37.00487]
[1742753943452,5.00831,1996.7,1996.4,31.9959]
[1742753943675,0.18742162,1996.6,1996.4,31.9959]
[1742753943862,5.00831,1996.7,1996.4,31.9959]
[1742753944027,0.18742162,1996.6,1996.4,31.9959]
[1742753944228,5.00805,1996.8,1996.4,39.19773691]
[1742753944428,0.1878047,1996.7,1996.4,39.19773691]
[1742753949079,0.1878047,1996.7,1996.4,39.19770691]
[1742753950059,0.1878047,1996.7,1996.6,6.37741]
[1742753950232,7.98198698,1997.2,1996.8,5.00785]
[1742753950433,0.18931448,1997.1,1996.8,9.71385]
[1742753950650,7.98198698,1997.2,1996.8,9.71385]
[1742753950962,0.18971331,1997.1,1996.8,9.71385]
[1742753951171,0.18971331,1997.1,1996.8,11.267942]
[1742753951364,7.98198698,1997.2,1996.8,11.267942]
[1742753951541,0.18933038,1997.0,1996.8,11.267942]
[1742753951740,7.98198698,1997.2,1996.8,11.267942]
[1742753951942,0.18894741,1996.9,1996.8,11.267942]
[1742753952151,7.98198698,1997.2,1996.8,11.267942]
[1742753952663,0.18971331,1997.1,1996.8,11.267942]
[1742753952966,7.98198698,1997.2,1996.8,11.267942]
[1742753953189,0.18933038,1997.0,1996.8,11.267942]
[1742753953332,7.98198698,1997.2,1996.9,1.1267942]
[1742753953533,7.98198698,1997.2,1996.8,11.267942]
[1742753954167,12.98917698,1997.2,1996.8,11.267942]
[1742753954734,12.94917698,1997.2,1996.8,11.267942]
[1742753955482,5.00737,1997.1,1996.8,6.260092]
[1742753956077,5.00737,1997.1,1996.8,11.268072]
[1742753958583,2.97495698,1997.0,1996.8,4.706]
[1742753958888,5.46892,1996.6,1996.4,31.196]
[1742753959190,8.44387698,1996.6,1996.4,26.491]
[1742753959364,5.00876,1996.5,1996.4,26.491]
[1742753959880,5.00976,1996.1,1996.0,4.705]
[1742753960982,7.98447698,1996.2,1996.0,4.705]
[1742753961983,5.00928,1996.3,1996.0,9.71486]
[1742753962184,5.00928,1996.3,1996.0,4.705]
[1742753968209,0.18337163,1996.2,1996.0,4.705]
[1742753970487,8.16799861,1996.2,1996.0,4.705]
[1742753970686,5.00976,1996.1,1996.0,5.255]
[1742753970887,5.18948133,1996.1,1996.0,4.705]
[1742753971211,0.17972133,1996.1,1996.0,4.705]
[1742753976574,0.17972133,1996.1,1996.0,10.46682]
[1742753976772,0.17972133,1996.1,1996.0,12.06851202]
[1742753977111,5.0091,1996.4,1996.0,17.07843202]
[1742753977312,0.17980295,1996.3,1996.0,17.07843202]
[1742753977476,5.0091,1996.4,1996.0,17.07843202]
[1742753977677,0.17980295,1996.3,1996.0,17.07843202]
[1742753978000,5.0091,1996.4,1996.1,1.7078432]
[1742753978211,0.17941945,1996.2,1996.0,17.07843202]
[1742753978411,5.0091,1996.4,1996.0,17.07843202]
[1742753978585,0.17903591,1996.1,1996.0,12.06841202]
[1742753978784,5.0091,1996.4,1996.0,12.06841202]
[1742753978975,0.17903591,1996.1,1996.0,12.06841202]
[1742753979479,5.0091,1996.4,1996.0,17.07826202]
[1742753979682,0.17989311,1996.3,1996.1,1.7078262]
[1742753979890,5.0091,1996.4,1996.1,1.7078262]
[1742753980102,0.17989311,1996.3,1996.1,1.7078262]
[1742753980289,5.0091,1996.4,1996.1,1.7078262]
[1742753980500,0.17980295,1996.3,1996.1,1.7078262]
[1742753980679,5.0091,1996.4,1996.1,1.7078262]
[1742753980879,0.17980295,1996.3,1996.1,1.7078262]
[1742753981111,5.0091,1996.4,1996.1,1.7078262]
[1742753981314,0.17980295,1996.3,1996.0,12.06834202]
[1742753981609,5.0091,1996.4,1996.0,12.06834202]
[1742753981778,0.17941945,1996.2,1996.0,12.06834202]
[1742753981979,5.0091,1996.4,1996.0,12.06834202]
[1742753982183,0.17903591,1996.1,1996.0,12.06834202]
[1742753982483,0.17912607,1996.1,1996.0,12.06834202]
[1742753982682,5.0091,1996.4,1996.0,12.06834202]
[1742753982902,0.17998326,1996.3,1996.0,12.06834202]
[1742753983208,5.0091,1996.4,1996.0,12.06834202]
[1742753983377,0.17959977,1996.2,1996.0,12.06834202]
[1742753983581,5.0091,1996.4,1996.1,1.2068342]
[1742753985414,5.0091,1996.4,1996.1,6.2165842]
[1742753986230,5.0091,1996.4,1996.1,1.2068342]
[1742753986415,5.0091,1996.4,1996.1,0.55]
[1742753987686,5.00937,1996.3,1996.1,0.55]
[1742753996439,10.01885,1996.3,1996.1,0.55]
[1742753997047,5.00937,1996.3,1996.1,0.55]
[1742753998230,0.17939578,1996.2,1996.1,0.55]
[1742754002436,5.18890578,1996.2,1996.1,0.55]
[1742754002841,5.00976,1996.1,1995.9,26.49]
[1742754003133,0.17871883,1996.0,1995.9,26.49]
[1742754003337,0.17871883,1996.0,1995.9,27.04]
[1742754004538,5.18873883,1996.0,1995.9,27.04]
[1742754004744,5.01074,1995.8,1995.4,5.8113]
[1742754004943,0.17747767,1995.7,1995.5,0.55]
[1742754005235,6.79445895,1995.9,1995.5,5.01119]
[1742754005443,5.18819125,1995.8,1995.5,5.01119]
[1742754005606,5.18819125,1995.8,1995.6,0.55]
[1742754008611,10.19891125,1995.8,1995.6,0.55]
[1742754008812,11.9830902,1995.8,1995.6,0.55]
[1742754009145,5.0108,1995.7,1995.4,9.71648]
[1742754009313,5.01133,1995.5,1995.3,31.196]
[1742754009513,0.17610623,1995.4,1995.3,31.196]
[1742754009824,0.17468753,1995.4,1995.3,31.746]
[1742754010028,10.02278,1995.5,1995.3,26.491]
[1742754010362,6.97029628,1995.4,1995.3,26.491]
[1742754011048,5.18611733,1995.4,1995.3,26.491]
[1742754017647,5.64651733,1995.4,1995.3,26.491]
[1742754023782,5.0119,1995.3,1995.1,4.705]
[1742754023922,5.01202,1995.2,1995.1,4.705]
[1742754024123,5.18542829,1995.2,1995.1,4.705]
[1742754024945,0.17340829,1995.2,1995.1,4.705]
[1742754028558,0.17340829,1995.2,1995.0,0.55]
[1742754031876,0.32729751,1995.2,1995.0,0.55]
[1742754033249,2.57376778,1995.2,1995.0,0.55]
[1742754033451,5.01254,1995.0,1994.8,0.55]
[1742754033755,0.31893024,1994.9,1994.8,0.55]
[1742754034249,7.11786051,1994.9,1994.6,26.501]
[1742754034469,5.01304,1994.8,1994.6,26.501]
[1742754034661,7.11779051,1994.9,1994.6,26.501]
[1742754034862,0.31666731,1994.7,1994.6,27.051]
[1742754035175,0.31666731,1994.7,1994.6,32.06448]
[1742754035469,1.78607027,1994.9,1994.6,32.06448]
[1742754035470,6.79889027,1994.9,1994.6,32.06448]
[1742754035671,0.31666731,1994.7,1994.6,32.06448]
[1742754035843,5.01282,1994.9,1994.6,32.06448]
[1742754036043,0.31666731,1994.7,1994.6,27.051]
[1742754036256,0.31666731,1994.7,1994.6,32.06451]
[1742754036659,5.01282,1994.9,1994.6,27.051]
[1742754036865,0.31666731,1994.7,1994.6,27.051]
[1742754037062,5.01282,1994.9,1994.6,27.051]
[1742754037269,0.31666731,1994.7,1994.6,27.051]
[1742754037576,0.31666731,1994.7,1994.6,36.318685]
[1742754037782,6.79830027,1995.2,1994.8,0.55]
[1742754038075,5.0122,1995.2,1994.8,5.56299]
[1742754038278,0.31752807,1995.1,1995.0,5.01237]
[1742754038494,5.01177,1995.3,1995.0,0.55]
[1742754038700,0.31819219,1995.2,1995.0,1.521837]
[1742754038844,5.33025219,1995.2,1995.0,1.521837]
[1742754039041,7.11632246,1995.2,1995.0,0.55]
[1742754039272,5.33025219,1995.2,1995.0,0.55]
[1742754039554,5.33025219,1995.2,1994.9,10.47842]
[1742754039555,7.11632246,1995.2,1994.9,5.4657]
[1742754040580,12.12854246,1995.2,1994.9,5.4657]
[1742754040878,5.01231,1995.1,1994.9,4.706]
[1742754041285,0.31770515,1995.0,1994.9,5.256]
[1742754042282,0.31770515,1995.0,1994.9,6.0157]
[1742754042585,5.01206,1995.2,1994.9,6.0157]
[1742754042757,0.31790484,1995.0,1994.9,6.0157]
[1742754042959,5.01206,1995.2,1994.9,6.0157]
[1742754043183,0.31828091,1995.1,1994.9,6.0157]
[1742754044884,0.31828091,1995.1,1994.9,5.256]
[1742754052657,5.01253,1995.0,1994.9,4.706]
[1742754053081,5.30812743,1995.0,1994.9,4.706]
[1742754053484,0.29559743,1995.0,1994.9,4.706]
[1742754061587,0.29559743,1995.0,1994.9,5.478]
[1742754065998,5.30812743,1995.0,1994.9,4.706]
[1742754066297,7.09441306,1995.0,1994.9,4.706]
[1742754066500,5.01282,1994.9,1994.7,27.3284]
[1742754066797,1.78628563,1994.8,1994.7,26.504]
[1742754067102,7.09026819,1994.8,1994.7,26.504]
[1742754067464,7.55066819,1994.8,1994.7,26.504]
[1742754068880,8.74320626,1994.8,1994.7,26.504]
[1742754070023,8.28280626,1994.8,1994.7,26.504]
[1742754076690,5.01331,1994.7,1994.3,10.54367]
[1742754077087,0.28540407,1994.6,1994.3,10.54367]
[1742754077591,0.28502766,1994.5,1994.3,10.54367]
[1742754077792,5.01331,1994.7,1994.3,10.54367]
[1742754077992,0.28540407,1994.6,1994.4,5.56403]
[1742754078207,7.9918937,1994.8,1994.4,5.56403]
[1742754078413,0.28578044,1994.7,1994.5,0.8244]
[1742754090012,0.28578044,1994.7,1994.4,5.56388]
[1742754090928,2.0728085,1994.7,1994.4,5.56388]
[1742754095039,0.28578044,1994.7,1994.4,5.56388]
[1742754095243,0.28578044,1994.7,1994.4,7.60840603]
[1742754097548,0.28578044,1994.7,1994.4,2.59452603]
[1742754097753,0.4604,1994.4,1993.7,0.7090817]
[1742754098062,0.4604,1994.4,1993.8,5.8341]
[1742754098063,1.78702806,1994.2,1993.8,5.8341]
[1742754098351,6.80163806,1994.2,1993.8,5.8341]
[1742754098527,0.28479824,1994.1,1993.9,0.55]
[1742754098727,0.28479824,1994.1,1993.8,5.8341]
[1742754098922,1.78702806,1994.1,1993.9,0.55]
[1742754099141,7.08653986,1994.0,1993.6,0.8187]
[1742754099459,1.78702806,1993.8,1993.4,5.01653]
[1742754099639,1.78702806,1993.9,1993.6,5.016]
[1742754099814,0.28278441,1993.8,1993.6,5.016]
[1742754100014,1.78702806,1993.9,1993.7,5.01574]
[1742754100216,0.4604,1994.2,1994.0,5.01479]
[1742754100411,1.78702806,1994.3,1994.0,5.01479]
[1742754100842,7.99398827,1994.4,1994.0,5.01479]
[1742754101058,13.00822827,1994.4,1994.0,5.01479]
[1742754101754,13.00821827,1994.4,1994.0,5.01479]
[1742754102046,5.0143,1994.3,1994.0,0.55]
[1742754102615,5.38805865,1994.3,1994.0,0.55]
[1742754103016,5.0143,1994.3,1994.0,0.55]
[1742754103247,0.28062719,1994.2,1994.0,0.55]
[1742754103625,0.28062719,1994.2,1994.1,5.56479]
[1742754103830,7.99389827,1994.4,1994.1,0.55]
[1742754104025,0.2810036,1994.3,1994.1,0.55]
[1742754104356,0.2810036,1994.3,1994.2,5.56454]
[1742754104647,0.2810036,1994.3,1994.2,0.55]
[1742754105257,0.2810036,1994.3,1994.2,5.56454]
[1742754105556,0.2810036,1994.3,1994.2,6.38324]
[1742754105734,0.38057755,1994.7,1994.4,5.01397]
[1742754105938,5.4732,1994.9,1994.4,9.71897]
[1742754106139,7.99298827,1994.8,1994.4,9.71897]
[1742754107864,13.00621827,1994.8,1994.4,9.71897]
[1742754110369,7.99298827,1994.8,1994.4,9.71897]
[1742754110536,8.45303827,1994.9,1994.5,2.348297]
[1742754110868,8.45303827,1994.9,1994.5,6.39009]
[1742754111263,2.97984827,1994.9,1994.5,11.40377]
[1742754111468,2.97984827,1994.9,1994.7,5.01307]
[1742754111669,13.00462827,1995.1,1994.7,5.01307]
[1742754111975,13.00462827,1995.1,1994.8,0.8264]
[1742754112269,14.6050911,1995.1,1994.8,0.8264]
[1742754112564,7.99218827,1995.1,1994.8,0.8264]
[1742754113573,5.01206,1995.2,1994.9,0.55]
[1742754113754,7.99175827,1995.3,1994.9,5.56276]
[1742754113939,2.97984827,1995.2,1994.9,5.56276]
[1742754116251,2.97984827,1995.4,1995.1,5.56205]
[1742754116676,7.99138827,1995.4,1995.1,0.55]
[1742754117774,2.97984827,1995.2,1995.1,0.55]
[1742754118350,2.97984827,1995.2,1994.8,0.8244]
[1742754118660,5.01228,1995.1,1994.8,5.5284]
[1742754118859,0.25882262,1995.0,1994.8,5.5284]
[1742754120167,3.23867089,1995.0,1994.8,0.55]
[1742754120476,3.23867089,1995.0,1994.8,5.253]
[1742754123289,8.25122089,1995.0,1994.8,5.253]
[1742754123963,8.25122089,1995.0,1994.8,0.55]
[1742754124678,5.01298,1994.9,1994.6,27.3374]
[1742754124881,2.97984827,1994.7,1994.6,27.063]
[1742754125248,3.23791053,1994.7,1994.6,27.063]
[1742754126249,0.25806226,1994.7,1994.6,27.063]
[1742754126450,8.45313827,1994.9,1994.6,27.063]
[1742754126648,0.2580603,1994.8,1994.6,27.063]
[1742754126874,9.88221931,1994.9,1994.6,27.063]
[1742754127081,0.2580603,1994.8,1994.6,27.063]
[1742754127444,14.89521931,1994.9,1994.6,27.063]
[1742754127655,0.2580603,1994.8,1994.6,27.063]
[1742754127963,14.89521931,1994.9,1994.6,27.063]
[1742754128164,0.25768409,1994.7,1994.6,27.063]
[1742754128483,0.25748318,1994.7,1994.6,27.063]
[1742754131750,8.45313827,1994.9,1994.6,27.063]
[1742754131978,0.25739477,1994.7,1994.6,27.063]
[1742754132179,2.97984827,1994.9,1994.8,0.55]
[1742754132484,5.01219,1995.2,1994.8,5.56287]
[1742754132783,3.44024827,1995.3,1994.8,5.56287]
[1742754132784,2.97984827,1995.3,1995.0,5.78969]
[1742754133179,0.25158693,1995.2,1995.0,10.49269]
[1742754136296,0.25158693,1995.2,1995.0,15.50503]
[1742754136491,0.25158693,1995.2,1995.1,5.01228]
[1742754137507,0.25158693,1995.2,1995.0,10.49275]
[1742754137794,0.25158693,1995.2,1995.1,5.01228]
[1742754139069,13.00260827,1995.5,1995.1,5.01228]
[1742754139266,0.25269664,1995.4,1995.1,5.01228]
[1742754139468,0.25269664,1995.4,1995.3,6.35537]
[1742754139663,7.99066827,1995.7,1995.3,6.35537]
[1742754139870,0.23200571,1995.6,1995.3,6.35537]
[1742754140198,7.99066827,1995.7,1995.3,6.35537]
[1742754140372,0.23162981,1995.5,1995.3,6.35537]
[1742754140568,7.99066827,1995.7,1995.3,7.492091]
[1742754140787,0.23125387,1995.4,1995.3,7.492091]
[1742754140974,7.99066827,1995.7,1995.3,7.492091]
[1742754141178,0.23125387,1995.4,1995.3,7.492091]
[1742754141387,8.01017,1996.0,1995.6,5.01097]
[1742754141703,2.97984827,1995.9,1995.6,0.55]
[1742754141880,2.97984827,1995.9,1995.6,6.35451]
[1742754142066,2.97984827,1995.9,1995.6,7.491087]
[1742754142268,2.97984827,1995.9,1995.6,12.501957]
[1742754143084,2.97984827,1995.9,1995.6,17.203957]
[1742754143700,2.97984827,1995.9,1995.6,12.193047]
[1742754144280,3.44024827,1996.0,1995.7,5.01071]
[1742754144607,3.44024827,1996.0,1995.7,6.2299987]
[1742754145004,2.97984827,1996.0,1995.7,6.2299987]
[1742754146426,7.98988827,1996.0,1995.7,1.2192887]
[1742754146608,7.98988827,1996.0,1995.6,12.193147]
[1742754147874,2.97984827,1995.8,1995.6,12.193147]
[1742754148074,0.21325119,1995.7,1995.6,12.193147]
[1742754155317,0.21325119,1995.7,1995.6,11.05657]
[1742754156222,0.21325119,1995.7,1995.6,10.26297]
[1742754158313,0.21325119,1995.7,1995.6,36.75997]
[1742754167923,7.98993827,1996.0,1995.6,36.75997]
[1742754168127,0.21304236,1995.7,1995.6,36.75997]
[1742754168324,7.98993827,1996.0,1995.6,40.937094]
[1742754168525,0.2126888,1995.7,1995.6,36.75997]
[1742754168694,7.98993827,1996.0,1995.6,36.75997]
[1742754168893,1.99850794,1995.9,1995.6,41.77081]
[1742754172138,1.99850794,1995.9,1995.6,36.75984]
[1742754173469,1.99850794,1995.9,1995.6,41.77072]
[1742754174663,1.99850794,1995.9,1995.6,36.75984]
[1742754174814,1.99850794,1995.9,1995.6,39.69174609]
[1742754175016,1.99850794,1995.9,1995.7,0.7885]
[1742754175656,0.21344052,1995.9,1995.7,0.7885]
[1742754176660,0.21344052,1995.9,1995.8,5.56052]
[1742754176861,1.78506742,1996.0,1995.8,5.56052]
[1742754177019,0.21413155,1995.9,1995.8,6.696488]
[1742754178052,2.24546742,1996.1,1995.8,6.696488]
[1742754178254,0.21450734,1996.0,1995.8,6.696488]
[1742754178457,1.99957476,1996.0,1995.8,6.696488]
[1742754181062,1.99957476,1996.0,1995.8,1.685968]
[1742754181362,1.99957476,1996.0,1995.8,0.55]
[1742754182368,1.78506742,1995.9,1995.8,0.55]
[1742754182725,1.99919897,1995.9,1995.8,0.55]
[1742754186429,7.00955897,1995.9,1995.7,31.194]
[1742754186671,1.78506742,1995.8,1995.7,31.194]
[1742754186864,1.99882315,1995.8,1995.7,31.194]
[1742754187885,0.21375573,1995.8,1995.7,31.194]
[1742754188047,1.78506742,1995.9,1995.7,31.194]
[1742754188375,0.21398127,1995.8,1995.7,31.194]
[1742754189043,1.78506742,1995.9,1995.7,31.194]
[1742754189221,0.21398127,1995.8,1995.7,31.194]
[1742754189421,1.78506742,1995.9,1995.7,31.194]
[1742754189626,0.21398127,1995.8,1995.7,31.194]
[1742754189845,6.79512742,1996.0,1995.7,31.194]
[1742754190042,0.21435709,1995.9,1995.7,31.194]
[1742754190471,0.21435709,1995.9,1995.7,36.2046]
[1742754191249,0.21435709,1995.9,1995.7,31.5056]
[1742754192334,0.21435709,1995.9,1995.7,5.7837]
[1742754192679,0.21435709,1995.9,1995.7,10.4827]
[1742754195678,0.21435709,1995.9,1995.7,5.7837]
[1742754196364,0.21435709,1995.9,1995.8,0.55]
[1742754196674,1.78506742,1996.1,1995.8,5.56052]
[1742754196972,0.21491146,1996.0,1995.8,5.56052]
[1742754198034,0.21491146,1996.0,1995.6,31.193]
[1742754198035,1.78506742,1995.9,1995.6,31.193]
[1742754198235,0.21422941,1995.8,1995.7,0.55]
[1742754198553,6.79546742,1995.9,1995.7,0.55]
[1742754198752,0.21422941,1995.8,1995.7,0.55]
[1742754199155,6.79546742,1995.9,1995.7,0.55]
[1742754199358,0.21422941,1995.8,1995.7,0.55]
[1742754199684,6.79546742,1995.9,1995.7,0.55]
[1742754199843,0.21422941,1995.8,1995.7,0.55]
[1742754200043,6.79546742,1995.9,1995.7,0.55]
[1742754200245,0.21422941,1995.8,1995.7,0.55]
[1742754200445,6.79546742,1995.9,1995.7,0.55]
[1742754200648,0.21422941,1995.8,1995.7,0.55]
[1742754200981,6.79546742,1995.9,1995.7,0.55]
[1742754201154,0.21422941,1995.8,1995.7,0.55]
[1742754201480,6.79546742,1995.9,1995.7,0.55]
[1742754201679,0.21422941,1995.8,1995.7,0.55]
[1742754202142,6.79546742,1995.9,1995.7,0.55]
[1742754202345,0.21422941,1995.8,1995.7,0.55]
[1742754202679,6.79546742,1995.9,1995.7,0.55]
[1742754202898,0.21422941,1995.8,1995.7,0.55]
[1742754203193,6.79546742,1995.9,1995.7,0.55]
[1742754203398,0.21422941,1995.8,1995.7,0.55]
[1742754203798,6.79546742,1995.9,1995.7,0.55]
[1742754204102,0.21422941,1995.8,1995.7,0.55]
[1742754204391,7.25565742,1996.0,1995.7,0.55]
[1742754204594,0.21422941,1995.8,1995.7,0.55]
[1742754205085,7.25565742,1996.0,1995.7,0.55]
[1742754205390,0.21460524,1995.9,1995.7,0.55]
[1742754205579,5.22492524,1995.9,1995.7,0.55]
[1742754209003,5.22492524,1995.9,1995.6,31.193]
[1742754212069,5.22492524,1995.9,1995.6,36.20399]
[1742754217506,5.22492524,1995.9,1995.6,31.193]
[1742754221291,7.00999266,1995.9,1995.6,31.193]
[1742754222423,5.22492524,1995.9,1995.6,31.193]
[1742754222627,5.22492524,1995.9,1995.6,36.20392]
[1742754224923,0.21460524,1995.9,1995.6,36.20392]
[1742754225124,0.21460524,1995.9,1995.8,5.56052]
[1742754225316,12.6355796,1996.2,1995.8,5.56052]
[1742754225514,1.96257519,1996.1,1995.8,5.56052]
[1742754226315,6.97234519,1996.1,1995.8,5.56052]
[1742754227698,1.78506742,1996.0,1995.8,5.56052]
[1742754227898,1.96189133,1995.9,1995.8,5.56052]
[1742754228228,0.17682391,1995.9,1995.8,5.56052]
[1742754229709,1.96189133,1995.9,1995.8,5.56052]
[1742754229909,0.17682391,1995.9,1995.8,5.56052]
[1742754230234,1.96189133,1995.9,1995.8,0.55]
[1742754232733,0.17682391,1995.9,1995.8,0.55]
[1742754233245,1.96189133,1995.9,1995.8,0.55]
[1742754237070,0.17682391,1995.9,1995.8,0.55]
[1742754237415,0.17682391,1995.9,1995.8,11.33385442]
[1742754237716,2.24546742,1996.6,1996.3,5.00922]
[1742754237924,0.13240168,1996.5,1996.3,5.79182]
[1742754238953,0.13240168,1996.5,1996.3,5.84190813]
[1742754239622,0.13240168,1996.5,1996.3,5.79182]
[1742754240136,0.13240168,1996.5,1996.3,5.84190795]
[1742754240315,1.9174691,1996.5,1996.2,10.2565]
[1742754240514,1.78506742,1996.4,1996.2,5.247]
[1742754240818,5.60166168,1996.5,1996.2,5.247]
[1742754240819,6.92588953,1996.3,1996.2,0.55]
[1742754241445,8.11939748,1996.3,1996.1,4.697]
[1742754241655,7.25497742,1996.2,1996.1,4.697]
[1742754242058,7.38616385,1996.2,1996.1,4.697]
[1742754242263,0.13118643,1996.2,1996.1,5.247]
[1742754242555,1.91625385,1996.2,1996.1,5.247]
[1742754245625,1.91625385,1996.2,1996.1,0.55]
[1742754246566,0.13118643,1996.2,1995.9,5.56018]
[1742754246744,0.13118643,1996.2,1996.0,0.556018]
[1742754246745,1.91625385,1996.2,1996.0,0.556018]
[1742754247463,1.78506742,1996.1,1995.9,5.56007]
[1742754247879,0.13043497,1996.0,1995.9,0.55]
[1742754248279,1.91550239,1996.0,1995.7,32.48585639]
[1742754248579,1.78506742,1995.9,1995.7,26.496]
[1742754248769,1.78506742,1995.9,1995.8,0.55]
[1742754248968,1.9151266,1995.9,1995.8,0.55]
[1742754249954,6.9253966,1995.9,1995.8,0.55]
[1742754250138,1.9151266,1995.9,1995.8,0.55]
[1742754250336,6.9253966,1995.9,1995.7,26.496]
[1742754250541,1.78506742,1995.8,1995.7,26.496]
[1742754250739,1.91475078,1995.8,1995.7,26.496]
[1742754251183,0.12968336,1995.8,1995.7,26.496]
[1742754251645,1.78506742,1995.9,1995.7,26.496]
[1742754251847,0.12968336,1995.8,1995.7,26.496]
[1742754252247,1.78506742,1995.9,1995.7,26.496]
[1742754252601,0.12968336,1995.8,1995.7,26.496]
[1742754252960,1.78506742,1995.9,1995.7,26.496]
[1742754253287,0.13000027,1995.8,1995.7,26.496]
[1742754253647,6.79536742,1995.9,1995.7,26.496]
[1742754253982,0.13000027,1995.8,1995.7,26.496]
[1742754254387,1.78506742,1995.9,1995.7,26.496]
[1742754254594,0.12657527,1995.8,1995.7,26.496]
[1742754255071,6.79534742,1995.9,1995.7,26.496]
[1742754255274,0.12657527,1995.8,1995.7,26.496]
[1742754255582,6.79534742,1995.9,1995.7,26.496]
[1742754255782,0.12657527,1995.8,1995.7,26.496]
[1742754256579,6.79534742,1995.9,1995.7,26.496]
[1742754256767,0.12657527,1995.8,1995.7,26.496]
[1742754257086,1.78506742,1995.9,1995.7,26.496]
[1742754257287,0.12657527,1995.8,1995.7,26.496]
[1742754257587,1.78506742,1995.9,1995.7,26.496]
[1742754257754,0.12657527,1995.8,1995.7,26.496]
[1742754257951,6.79535742,1995.9,1995.7,26.496]
[1742754258153,0.12696011,1995.8,1995.7,26.496]
[1742754258455,5.01029,1995.9,1995.7,26.496]
[1742754258677,0.12696011,1995.8,1995.7,26.496]
[1742754258986,5.01029,1995.9,1995.7,26.496]
[1742754259184,0.12696011,1995.8,1995.7,26.496]
[1742754259652,5.01029,1995.9,1995.7,26.496]
[1742754259862,0.12696011,1995.8,1995.7,26.496]
[1742754260188,5.01029,1995.9,1995.7,26.496]
[1742754260389,0.12696011,1995.8,1995.7,26.496]
[1742754260565,6.79535742,1995.9,1995.7,26.496]
[1742754260765,0.12696011,1995.8,1995.7,26.496]
[1742754260953,6.79535742,1995.9,1995.7,26.496]
[1742754261153,0.12696011,1995.8,1995.7,26.496]
[1742754261353,11.80581742,1995.9,1995.7,26.496]
[1742754261657,0.12696011,1995.8,1995.7,26.496]